Cogmind - Beta 14 @@@ ROGUE MODE // 2024.09.07 @ 10:59:49 Player: ILikeVoltron Result: Self-destructed Performance ------------- Evolutions (1) 500 Regions Visited (2) 400 Robots Destroyed (35) 175 Value Destroyed (399) 399 Prototype IDs (0) 0 Alien Tech Used (0) 0 Bonus (0) 0 TOTAL SCORE: 1474 Bonus ------- None Cogmind --------- Core Integrity 179/400 Matter 272/300 Energy 100/100 System Corruption 0% Temperature Cool (0) Movement Treading (240) Ox1 Location -9/Materials Parts ------- > --- POWER (1) -------- (None) > --- PROPULSION (3) --- Light Treads > --- UTILITY (3) ------ Large Storage Unit Terrain Scan Processor Medium Armor Plating > --- WEAPON (2) ------- Heavy Assault Rifle Heavy Assault Rifle > --- INVENTORY (15) --- Ion Engine Aluminum Leg Aluminum Leg Huge Storage Unit Medium Matter Pod (100) Medium Matter Pod (100) High-capacity Matter Pod (200) Sensor Array Improved Terrain Scanner Seismic Detector Transport Network Coupler Medium Laser Light Assault Rifle Light Assault Rifle Mining Laser Peak State ------------ > --- POWER ------------ Ion Engine > --- PROPULSION ------- Light Treads Light Treads Light Treads > --- UTILITY ---------- Large Storage Unit Improved Terrain Scanner Terrain Scan Processor > --- WEAPON ----------- Medium Laser Mining Laser > --- INVENTORY -------- Ion Engine Aluminum Leg Aluminum Leg Huge Storage Unit Medium Matter Pod Medium Matter Pod High-capacity Matter Pod Sensor Array Seismic Detector Transport Network Coupler Light Armor Plating Medium Laser Light Assault Rifle [Rating: 13] Favorites ----------- Power Ion Engine Engine Ion Engine Propulsion Light Treads Treads Light Treads Leg Aluminum Leg Utility Large Storage Unit Device Improved Terrain Scanner Storage Large Storage Unit Processor Terrain Scan Processor Protection Light Armor Plating Weapon Medium Laser Energy Gun Medium Laser Ballistic Gun Light Assault Rifle Special Weapon Mining Laser Build | -11 -10 -9 ------- Run | Yrd Mat Mat Slots Evolved 2 | . . 2 Power . | . . . Propulsion 1 | . . 1 Utility 1 | . . 1 Weapon . | . . . Parts Attached 25 | 2 8 15 Power 2 | . 2 . Engine 2 | . 2 . Core . | . . . Reactor . | . . . Propulsion 6 | . 3 3 Treads 6 | . 3 3 Leg . | . . . Wheel . | . . . Hover . | . . . Flight . | . . . Utility 7 | 1 2 4 Device 2 | 1 . 1 Storage 2 | . 2 . Processor 1 | . . 1 Hackware . | . . . Protection 2 | . . 2 Artifact . | . . . Weapon 10 | 1 1 8 Energy Gun 1 | 1 . . Energy Cannon . | . . . Ballistic Gun 6 | . . 6 Ballistic Cannon . | . . . Launcher . | . . . Special Weapon 3 | . 1 2 Impact Weapon . | . . . Slashing Weapon . | . . . Piercing Weapon . | . . . Special Melee Weapon . | . . . Unidentified Prototypes . | . . . Parts Lost 6 | . . 6 Power 1 | . . 1 Propulsion 3 | . . 3 Utility 1 | . . 1 Weapon 1 | . . 1 Highest Loss Streak 3 | . . 3 To Critical Strikes . | . . . Average Slot Usage (%) 98 | . 100 96 Engine 11 | . 14 10 Treads 28 | . 25 30 Device 12 | . 14 11 Storage 12 | . 14 11 Processor 4 | . . 7 Protection 1 | . . 2 Energy Gun 16 | . 24 10 Ballistic Gun 5 | . . 8 Special Weapon 2 | . 3 2 Peak Build Rating 13 | 9 10 13 Average Rating 10 | 7 9 12 On Entrance 8 | 6 9 10 Naked Turns . | . . . Heaviest Build 37 | 15 30 37 Greatest Support 60 | 20 40 60 Greatest Overweight (x) 1 | . . 1 Average Overweight (x) . | . . . Largest Inventory Capacity 15 | 8 15 15 Average Capacity 13 | 8 14 15 Most Carried 15 | 8 15 15 Average Carried 12 | 6 12 13 Final Capacity 15 | 8 15 15 Final Carried 15 | 8 14 15 Class Distribution -------------------- 69% | Mutant 30% | Scavenger-Mutant Dominant Class ---------------- Mutant | -10/Materials Mutant | -9/Materials Resources | -11 -10 -9 ----------- Run | Yrd Mat Mat Matter Collected 801 | 294 151 356 Remotely . | . . . Salvage Created 954 | 156 398 400 Parts 65 | 14 26 25 Haulers Intercepted 2 | . 2 . Recyclers Shooed 4 | . 3 1 Parts Field Recycled . | . . . Retrieved Matter . | . . . Parts Self-Destructed . | . . . Prevented . | . . . Kills | -11 -10 -9 ------- Run | Yrd Mat Mat Combat Hostiles Destroyed 17 | . 5 12 Guns 17 | . 5 12 Classes Destroyed 9 | 3 5 1 Worker 7 | 2 4 1 Builder 2 | . 1 1 Tunneler 3 | 3 . . Hauler 2 | . 2 . Recycler 3 | 1 1 1 Watcher 1 | . 1 . Swarmer 12 | . 3 9 Grunt 2 | . 2 . Sentry 3 | . . 3 Best Kill Streak 7 | 5 7 5 Combat Bots Only 4 | . 3 4 Max Kills in Single Turn 1 | 1 1 1 Gunslinging . | . . . Exploded . | . . . Melee . | . . . Uniques/NPCs Destroyed . | . . . Combat | -11 -10 -9 -------- Run | Yrd Mat Mat Hostile Shots Fired 154 | . 21 133 Missed 29 | . 5 24 Damage Taken 1201 | . 156 1045 Core 233 | . 12 221 Absorbed by Shields . | . . . Core Remaining (%) 97 | 100 95 . Volleys Fired 126 | 20 40 66 Largest 2 | 2 2 2 Hottest 100 | 100 100 100 Shots Fired 229 | 40 75 114 Gun 214 | 40 70 104 Cannon . | . . . Launcher . | . . . Special 15 | . 5 10 Kinetic 59 | . . 59 Thermal 170 | 40 75 55 Explosive . | . . . Electromagnetic . | . . . Robot Hit Streak 14 | 5 9 14 Robot Miss Streak 5 | 2 2 5 Penetration Max . | . . . Secondary Targets 2 | . . 2 Max Gunslinging Chain 1 | . . 1 Shots Hit Robots 132 | 22 42 68 Core Hits 50 | 7 19 24 Critical Kills . | . . . Critical Parts Destroyed 1 | . . 1 Critical Strikes 9 | 1 4 4 Burn 8 | 1 4 3 Destroy 1 | . . 1 Melee Attacks . | . . . Impact . | . . . Slashing . | . . . Piercing . | . . . Sneak Attacks . | . . . Combat Hostiles . | . . . Follow-up Attacks . | . . . Damage Inflicted 1596 | 300 552 744 Guns 1596 | 300 552 744 Cannons . | . . . Explosions . | . . . Melee . | . . . Ramming . | . . . Kinetic 422 | . . 422 Thermal 1174 | 300 552 322 Explosive . | . . . Electromagnetic . | . . . Impact . | . . . Slashing . | . . . Piercing . | . . . Highest Corruption . | . . . Average Corruption . | . . . Corruption Purged . | . . . Corruption Blocked . | . . . Overload Shots . | . . . Overflow Damage . | . . . Projectiles . | . . . Explosions . | . . . Melee . | . . . Knockbacks . | . . . Impact . | . . . Kinetic . | . . . Secondary . | . . . Self-Inflicted Damage . | . . . Shots . | . . . Rammed . | . . . Targets Rammed . | . . . Kicked . | . . . Crushed . | . . . Highest Temperature 346 | 234 346 120 Average Temperature 70 | 68 112 29 Received Heat Transfer 180 | . 54 126 Effects 5 | 2 3 . Interference 4 | 2 2 . Short Circuit 1 | . 1 . Siege Activations . | . . . Robots Corrupted . | . . . Combat Hostiles . | . . . Parts Fried . | . . . Impact Corruptions . | . . . Robots Melted . | . . . Combat Hostiles . | . . . Parts Melted 10 | 1 4 5 Heat Transferred 4070 | 962 1924 1184 Parts Sabotaged . | . . . Parts Stolen . | . . . Parts Stripped . | . . . Power Chain Reactions . | . . . Alert | -11 -10 -9 ------- Run | Yrd Mat Mat Peak Influence 362 | 30 243 362 Initial 19 | . 19 18 Average 92 | 14 118 95 Maximum Alert Level 1 | . 1 1 Low Security (%) 88 | 100 84 88 Level 1 11 | . 15 11 Level 2 . | . . . Level 3 . | . . . Level 4 . | . . . Level 5 . | . . . High Security . | . . . Max Security . | . . . Squads Dispatched 3 | . 2 1 Investigation . | . . . Extermination . | . . . Reinforcement 3 | . 2 1 Assault . | . . . Garrison . | . . . Intercept . | . . . Searches Triggered . | . . . Construction Impeded . | . . . Haulers Reinforced . | . . . Active Scanning Responses . | . . . Cargo Convoy Interrupts . | . . . Stealth | -11 -10 -9 --------- Run | Yrd Mat Mat Distress Signals 3 | . . 3 Communications Jammed . | . . . Distress Signals . | . . . Times Spotted 40 | . 12 28 Peak Tracking Total 8 | . 3 8 Tactical Retreats 7 | . . 7 Traps | -11 -10 -9 ------- Run | Yrd Mat Mat Traps Triggered . | . . . Indirectly . | . . . Trap Hack Attempts . | . . . Triggered . | . . . Disarmed . | . . . Reprogrammed . | . . . Reused . | . . . Traps Extracted . | . . . Installed . | . . . Triggered . | . . . Machines | -11 -10 -9 ---------- Run | Yrd Mat Mat Machines Disabled . | . . . Max in Single Turn . | . . . Machines Repaired . | . . . Machines Dismantled . | . . . Machines Sabotaged . | . . . Overloaded Fab Kills . | . . . Hacking | -11 -10 -9 --------- Run | Yrd Mat Mat Machines Accessed 2 | . 2 . Terminals 2 | . 2 . Fabricators . | . . . Repair Stations . | . . . Recycling Units . | . . . Scanalyzers . | . . . Garrison Access . | . . . Total Hacks 7 | . 7 . Successful 5 | . 5 . Failed 2 | . 2 . Catastrophic . | . . . Database Lockouts . | . . . Manual 1 | . 1 . Terminals 7 | . 7 . Fabricators . | . . . Repair Stations . | . . . Recycling Units . | . . . Scanalyzers . | . . . Garrison Access . | . . . Terminal Hacks 4 | . 4 . Alert Level 1 | . 1 . Locate Traps 1 | . 1 . Zone Layout 2 | . 2 . Fabricator Hacks . | . . . Repair Station Hacks . | . . . Recycling Unit Hacks . | . . . Scanalyzer . | . . . Garrison Access Hacks . | . . . Unauthorized Hacks 1 | . 1 . Terminals 1 | . 1 . Botnet 1 | . 1 . Fabricators . | . . . Repair Stations . | . . . Recycling Units . | . . . Scanalyzers . | . . . Garrison Access . | . . . Data Cores Recovered . | . . . Used . | . . . Hacking Detections 2 | . 2 . Full Trace Events . | . . . Feedback Events . | . . . Feedback Blocked . | . . . Robot Schematics Acquired . | . . . Robots Built . | . . . Authchips . | . . . Time . | . . . Total Robot Build Rating . | . . . Part Schematics Acquired . | . . . Parts Built . | . . . Authchips . | . . . Time . | . . . Total Part Build Rating . | . . . Parts Repaired . | . . . Time . | . . . Parts Recycled . | . . . Recycled Matter . | . . . Retrieved Matter . | . . . Retrieved Components . | . . . Parts Scanalyzed . | . . . Part Schematics Acquired . | . . . Parts Damaged . | . . . Bothacking | -11 -10 -9 ------------ Run | Yrd Mat Mat Used RIF Installer . | . . . Robots Hacked . | . . . Non-combat . | . . . Combat . | . . . Robot Hacks Applied . | . . . Relay Couplers Released . | . . . Fabnet Peak Effective % . | . . . Robots Rewired . | . . . Allies Hacked . | . . . Hacks Repelled . | . . . Allies | -11 -10 -9 -------- Run | Yrd Mat Mat Total Allies . | . . . Largest Group . | . . . Highest-Rated Group . | . . . Highest-Rated Ally . | . . . Total Orders . | . . . Ally Attacks . | . . . Total Damage . | . . . Kills . | . . . Allies Corrupted . | . . . Allies Melted . | . . . Intel | -11 -10 -9 ------- Run | Yrd Mat Mat Robot Analysis Total . | . . . Derelict Logs Recovered . | . . . Drone Launches . | . . . Drone Recoveries . | . . . Exploration | -11 -10 -9 ------------- Run | Yrd Mat Mat Turns Passed 1354 | 181 472 701 Spaces Moved 503 | 83 198 222 Core . | . . . Treads 399 | . 177 222 Legs 104 | 83 21 . Wheels . | . . . Hover . | . . . Flight . | . . . Fastest Speed 120 | 120 120 160 Average Speed 152 | 120 155 161 Slowest Speed 240 | 120 160 240 Overloaded Moves . | . . . Propulsion Burnouts . | . . . Robots Hopped . | . . . Cave-ins Triggered . | . . . Exploration Rate (%) 26 | 6 47 26 Regions Visited 2 Branch Regions . Pre-discovered Areas . | . . . Known Exits Taken . | . . . Unknown Exits Taken 2 | 1 1 . Scrap Searched . | . . . Spaces Dug 13 | . 4 9 Terrain Destroyed 13 | . 4 9 Melee . | . . . Projectile 13 | . 4 9 AOE . | . . . Terrain Rammed . | . . . Walls Destroyed . | . . . Machines Disabled . | . . . Actions | -11 -10 -9 --------- Run | Yrd Mat Mat Total 836 | 124 277 435 Wait 166 | 16 20 130 Move 501 | 82 197 222 Hop . | . . . Pick Up 11 | 3 7 1 Fast Attach 3 | 1 . 2 Attach 4 | . . 4 Detach 1 | . . 1 Swap 18 | 1 8 9 Drop 6 | 1 5 . Fire 126 | 20 40 66 Melee . | . . . Ram . | . . . Kick . | . . . Crush . | . . . Escape Stasis . | . . . Rewire . | . . . Trap . | . . . Miscellaneous . | . . . Route ------- -11/Scrapyard -10/Materials (discovered 4 exits: [*Mat x2] / [*Min x2]) -9/Materials History --------- Turn | Location | Event 43 | -11/Scrapyard | Discovered new exit (range 3) 182 | -11/Scrapyard | Entered Materials 184 | -10/Materials | Discovered new exit (range 12) 303 | -10/Materials | Build established: Mutant 337 | -10/Materials | Discovered new exit (range 12) 485 | -10/Materials | Discovered new exit (range 13) 623 | -10/Materials | Discovered new exit (range 14) 654 | -10/Materials | Entered another Materials area 654 | -9/Materials | Evolved 2 slots: Propulsion x1, Utility x1 847 | -9/Materials | Build established: Scavenger-Mutant 1262 | -9/Materials | Build established: Mutant 1350 | -9/Materials | Core integrity fell below 50% 1355 | -9/Materials | Self-destructed Last Messages --------------- 01260_ Acquired 12 matter. 01278_ S-10 Pest destroyed. 01293_ Y-45 Defender suffers critical hit (Burn). 01293_ R-06 Scavenger collects Lgt. Ion Engine. 01294_ Lgt. Armor Plating destroyed. 01297_ R-06 Scavenger collects Flight Unit. 01297_ Critical hit (Burn: +37). 01302_ Imp. Ion Engine melted. 01302_ Y-45 Defender destroyed. 01310_ Acquired 16 matter. 01312_ R-06 Scavenger sends out distress signal. 01322_ Y-45 Defender suffers critical hit (Burn). 01326_ Med. Laser destroyed. 01327_ Y-45 Defender heat damages Lgt. Treads. 01329_ Ion Engine destroyed. 01335_ Lgt. Treads destroyed. 01336_ Y-45 Defender destroyed. 01338_ Acquired 26 matter. 01342_ Critical hit (Destroy). 01345_ Acquired Hvy. Assault Rifle. Map ----- +----------------------------------------------------+ | ?Y"? #??#??????????????????????????????????????? | | ? #??? ????????????????????????????????????? | | ""? + ???????????????????????????????????????? | | ""?"? ?????? ? ?????????????????????????????????? | | ???"" ??? ??????????????????????????????????????? | | ""??" ??????????????????????????????????????????? | | ? """? ?? ??#???????????????????????????????????? | | ? #???#?????????????????????????????????????? | | ??######? ??##? ?????????????????????????????????? | | ####### ? #?????#??????????????????????????????? | | ? #??? ??? ????????????????????????????? | | #? ?? ??? ???????????????????????????? | | ?????????????????????????????????????? | | ####### ??? ??????????????????????????????????? | | #?#######+#### ###?#???????????????????????????? | | #?#?# # +? ???????????????????????????? | | #?### """ + # ?????????????????????????????? | | #?### """ # # ? ? ?????????????????????????? | | ##??# """ # ##+?#???????????????????????????? | | ##### # ###??????????????????????????? | | / """ # #??????????????????????????? | | ##### """ # ?????????????????????????? | | #???# """ # ? ##?????????????????????????? | | #?### ## ###+#+###????????????????????????? | | ###?########### ## #############????????????? | | ############### ## /@%%!= s ?????? | | #?## "T" %% # # ###*#######+#????????????? | | ##?# * + w #?#!#????????????????????? | | #?## # # #?# #????????????????????? | | ##?#= == ## ## #?# #????????????????????? | | ##?#####+###### ## #?# #????????????????????? | | ?#?#?##=###### ## #?# #????????????????????? | | ? ##?### # #? ????????????????????? | | ??? ?? # #? ????????????????????? | | ? ####### # #? ????????????????????? | | ? ?? ? ? ## #?# #????????????????????? | | ?? ? ## #?# #????????????????????? | | ??? ???+ #########?# #????????????????????? | | ??# ???? ##+#?????????? ?????????????????????? | | #?#?? ? ? #????????????? ?????????????????????? | | ??? ???? # ????????????^?????????????????????? | | ?????????### #????????????? ?????????????????????? | | ???????????? #????????????? ?????????????????????? | | ???????????? +????????????? ?????????????????????? | | ?????????????#????????????? ?????????????????????? | | ?????????????????????????????????????????????????? | | ?????????????????????????????????????????????????? | | ?????????????????????????????????????????????????? | | ?????????????????????????????????????????????????? | | ?????????????????????????????????????????????????? | +----------------------------------------------------+ Best States ------------- Heat Dissipation 28 Energy Generation 10 Energy Capacity 250 Matter Stores 300 Matter Capacity 300 Sight Range 16 Terrain Scan Range 16 Terrain Scan Density 85 Armor Coverage 225 Evasion (%) 55 Recoil Reduction 3 Item Schematics ----------------- None Robot Schematics ------------------ None Fabricated ------------ Nothing Alien Tech Used ----------------- None Achievements -------------- None Challenges ------------ None Game ------ Seed NeutronOmegaSegregator Manual? 0 Play Time 00:15:01 Cumulative 162.7 hours Start 2024.09.07 @ 10:48:20 End 2024.09.07 @ 10:59:49 Sessions 1 Manual Loads 0 Difficulty Rogue Special Mode None Game No. 295 Rogue 291 Adventurer 0 Explorer 4 Win Type - Total 0 Types 0/0/0/0/0/0/0/0/0 Lore% 20 Gallery% 46 Achievement% 34 Wizard Run 0 Options --------- Layout 1 ASCII 0 Keyboard 1 Movement Arrows Keybinds 0 Fullscreen 1 Font 32/SmallcapsGlow Map View 130x35 Zoom Use 2% Tactical HUD 1 Map Filters NONE Filters NONE Steam 0 RUN: 24bd09ed-5d53-4d26-afc7-bfdcf40280a6